[Event "44th Chess Olympiad Women 2022"]
[Site "Chennai"]
[Date "2022.08.03"]
[Round "6.30"]
[White "Manova, Ivana"]
[Black "Paasikangas, Johanna"]
[Result "1-0"]
[WhiteElo "1849"]
[BlackElo "2155"]
[Annotator "TA"]
[PlyCount "79"]
[EventDate "2022.??.??"]
[TimeControl "60"]

{[%evp 11,79,18,18,8,33,-25,13,8,15,9,15,0,0,0,0,0,8,-51,-47,-44,-18,-37,0,0,0,
0,0,-15,0,0,42,50,59,0,8,14,6,13,26,0,0,0,133,79,70,0,544,525,561,557,537,482,
548,543,1774,477,486,416,521,511,630,629,699,684,1109,1029,759,708,666,640]} 1.
e4 {[%emt 0:00:05]} c5 {[%emt 0:00:11]} 2. Nf3 {[%emt 0:00:17]} Nc6 {[%emt 0:
00:00]} 3. Bb5 {[%emt 0:00:52]} g6 {[%emt 0:01:36]} 4. O-O {[%emt 0:01:22]} Bg7
{[%emt 0:01:20]} 5. Re1 {[%emt 0:01:06]} e5 {[%emt 0:06:01]} 6. d3 {[%emt 0:00:
00]} Nge7 {[%emt 0:09:55]} 7. Be3 {[%emt 0:04:16] B31: Sicilian: 2...Nc6 3 Bb5
g6.} Nd4 {[%emt 0:04:44] [#]} 8. Bxd4 $146 {[%emt 0:06:48]} (8. Bc4 $14) ({
Predecessor:} 8. Bc4 O-O 9. c3 Nxf3+ 10. Qxf3 d6 11. Nd2 Bd7 12. a4 Kh8 13. Qg3
Qc7 14. Nf3 f6 {½-½ (43) Hegemann,E (2123)-Funke,R (2236) Germany 2008}) 8...
cxd4 {[%emt 0:01:28]} 9. c3 {[%emt 0:01:12] The position is equal.} dxc3 {
[%emt 0:05:40]} 10. Nxc3 {[%emt 0:08:57]} O-O {[%emt 0:01:28]} 11. d4 {[%emt 0:
00:00]} exd4 {[%emt 0:07:52]} 12. Nxd4 {[%emt 0:03:40]} Qb6 {[%emt 0:03:59]}
13. e5 {[%emt 0:05:00]} a6 {[%emt 0:02:33]} 14. Na4 {[%emt 0:03:30]} (14. Bc4
$11) 14... Qa5 $15 {[%emt 0:03:21]} 15. b4 {[%emt 0:01:18]} Qd8 {[%emt 0:05:34]
} 16. Bf1 {[%emt 0:03:58]} b5 {[%emt 0:02:43]} 17. Nc5 {[%emt 0:16:47]} d6 {
[%emt 0:03:31]} 18. exd6 {[%emt 0:01:37]} Qxd6 {[%emt 0:00:19]} 19. Nf3 {
[%emt 0:00:26] Pair of Knights!} Qc7 {[%emt 0:05:51]} 20. Rc1 {[%emt 0:01:28]
[%cal Yc5a6]} Qa7 {[%emt 0:03:22]} 21. Qd6 {[%emt 0:02:19]} Nf5 {[%emt 0:00:23]
} 22. Qc6 {[%emt 0:00:23]} ({Better is} 22. Qd5 $1 $14) 22... Nd4 {[%emt 0:00:
00]} 23. Nxd4 {[%emt 0:01:13]} Bxd4 {[%emt 0:00:07]} 24. Qd6 {[%emt 0:02:36]}
Bxc5 {[%emt 0:03:20]} 25. Rxc5 {[%emt 0:00:08] [#] Threatens to win with Re7.}
Qd7 {[%emt 0:02:04]} 26. Qf6 {[%emt 0:01:35]} Qg4 {[%emt 0:00:48]} (26... Qd8
$11 27. Qa1 Bf5) 27. Re7 {[%emt 0:04:02] White is much more active. The black
rooks are badly placed.} (27. h4 $142 Bf5 28. h5) 27... Be6 $16 {[%emt 0:05:58]
} 28. Rg5 {[%emt 0:00:45]} (28. h4 $1 $14 h6 29. a3) 28... Qe4 $2 {[%emt 0:00:
00]} (28... Qxb4 $11 {and Black has nothing to worry.} 29. Rxe6 fxe6 30. Rxg6+
hxg6 31. Qxg6+ Kh8 32. Qh6+ Kg8 33. Qg6+ Kh8 34. Qh6+ Kg8 35. Qg6+) 29. Re5 {
[%emt 0:00:26][%cal Yg5e5,Ye5e6,Ye6e1]} Qxb4 {[%emt 0:02:39]} 30. R5xe6 {
[%emt 0:00:09]} Rac8 {[%emt 0:00:35]} 31. Re1 {[%emt 0:01:00]} a5 {[%emt 0:00:
15]} 32. g3 {[%emt 0:00:37]} Qa4 {[%emt 0:00:29]} 33. Qb2 {[%emt 0:00:00]} (33.
Bh3 $142 {[%cal Yh3e6] Threatening mate with Be6!} Rc6 34. Qxc6) 33... b4 {
[%emt 0:01:11]} 34. Qb3 {[%emt 0:00:16]} Qc6 {[%emt 0:00:09]} 35. Bg2 {[%emt 0:
00:33][%cal Yf1g2,Yg2d5,Yd5f7] White is clearly winning.} Qc5 {[%emt 0:00:10]}
36. Bd5 {[%emt 0:00:29]} Rc7 {[%emt 0:00:15] [#]} 37. Bxf7+ $1 {[%emt 0:00:46]}
Kg7 {[%emt 0:00:53]} (37... Kh8 38. Qb2+) 38. Rxc7 {[%emt 0:00:22]} Qxc7 {
[%emt 0:00:08]} 39. Bd5 {[%emt 0:00:20]} Qc5 {[%emt 0:00:00]} 40. Qb2+ {
[%emt 0:00:25] Weighted Error Value: White=0.47/Black=0.50} 1-0

[Event "44th Chess Olympiad Women 2022"]
[Site "Chennai"]
[Date "2022.08.03"]
[Round "6.30"]
[White "Nazarova, Anastasia"]
[Black "Stojkovska, Monika"]
[Result "1/2-1/2"]
[WhiteElo "2208"]
[BlackElo "2091"]
[Annotator "TA"]
[PlyCount "91"]
[EventDate "2022.??.??"]
[TimeControl "60"]

{[%evp 10,91,16,18,15,10,21,11,13,17,21,16,10,9,16,0,0,0,0,0,0,0,63,61,55,38,
45,25,26,0,7,3,14,0,0,0,7,0,0,1,12,0,0,-6,0,0,0,-1,0,-10,6,0,0,0,8,9,8,8,37,30,
32,35,43,31,33,19,23,4,19,22,22,22,25,22,22,22,32,0,18,0,25,0,0,0]} 1. e4 {
[%emt 0:00:02]} e6 {[%emt 0:00:11]} 2. d4 {[%emt 0:00:04]} d5 {[%emt 0:00:08]}
3. Nd2 {[%emt 0:00:04]} c5 {[%emt 0:00:46]} 4. exd5 {[%emt 0:00:12]} Qxd5 {
[%emt 0:00:32]} 5. Ngf3 {[%emt 0:00:08]} cxd4 {[%emt 0:00:49]} 6. Bc4 {[%emt 0:
00:00]} Qd7 {[%emt 0:00:06] C07: French Tarrasch: 3...c5, 4 Ngf3 and 4 exd5
Qxd5.} 7. O-O {[%emt 0:00:16]} Nc6 {[%emt 0:01:46]} 8. Nb3 {[%emt 0:00:04]
[%cal Rb3d4]} a6 {[%emt 0:00:11]} 9. Nbxd4 {[%emt 0:00:20]} Nxd4 {[%emt 0:00:
00]} 10. Nxd4 {[%emt 0:00:20]} Qc7 {[%emt 0:00:34] Inhibits Bf4.} 11. Bb3 {
[%emt 0:00:36]} Bd6 {[%emt 0:00:37]} 12. h3 {[%emt 0:01:33]} Ne7 {[%emt 0:00:
00]} 13. c3 {[%emt 0:03:15]} O-O {[%emt 0:01:08]} 14. Qh5 {[%emt 0:05:17]} Ng6
{[%emt 0:02:29]} 15. Bc2 {[%emt 0:07:26] [#]} Qc5 $146 {[%emt 0:15:42]} (15...
b5 $11) ({Predecessor:} 15... b5 16. Be3 Bb7 17. Rad1 Bh2+ 18. Kh1 Bf4 19. Bxf4
Qxf4 20. Ne2 Qc7 21. Rd4 Qe7 {0-1 (57) Garcia Escoda,M (2107)-Castellanos
Gomez,A (2287) Linares 2021}) 16. Qxc5 $14 {[%emt 0:05:42]} Bxc5 {[%emt 0:00:
00]} 17. Nb3 {[%emt 0:01:31][%cal Yd4b3,Yb3d2,Yd2c4]} Bb6 {[%emt 0:00:00]} 18.
a4 {[%emt 0:08:55]} Bd7 {[%emt 0:10:26]} 19. Be4 {[%emt 0:11:17]} Bc6 {[%emt 0:
05:43]} 20. Bxc6 {[%emt 0:00:22]} bxc6 {[%emt 0:00:01]} 21. Re1 {[%emt 0:00:39]
} Rab8 {[%emt 0:01:27][%cal Yb6f2]} 22. Nd2 {[%emt 0:00:23]} Nf4 {[%emt 0:05:
22]} 23. Nc4 {[%emt 0:04:50]} Nd3 {[%emt 0:03:15][%csl Ye1,Yf2]} 24. Re2 {
[%emt 0:00:12]} Rfd8 {[%emt 0:08:29]} 25. Bg5 {[%emt 0:09:41][%cal Yc1g5,Yg5h4,
Yh4g3]} f6 {[%emt 0:06:02]} 26. Bh4 {[%emt 0:04:29]} Kf7 {[%emt 0:05:37]} 27.
Bg3 {[%emt 0:00:29] Prevents Bc7.} e5 {[%emt 0:00:20]} 28. Kf1 {[%emt 0:00:17]}
Bc7 {[%emt 0:08:26]} (28... Rd5 {with more complications.} 29. f3 g5 30. Rd2
Nf4) 29. f3 {[%emt 0:04:51]} Nc5 {[%emt 0:01:56]} 30. Bf2 {[%emt 0:09:28]} Nb3
{[%emt 0:03:43]} 31. Rae1 {[%emt 0:03:54]} Na5 {[%emt 0:00:00]} 32. Nxa5 {
[%emt 0:06:46]} Bxa5 {[%emt 0:00:02]} 33. b4 {[%emt 0:00:06]} Bc7 {[%emt 0:03:
23]} 34. Re4 {[%emt 0:00:09]} Rd6 {[%emt 0:01:35]} 35. Rc4 {[%emt 0:01:57]} Bb6
{[%emt 0:00:24]} 36. Bxb6 {[%emt 0:04:59]} Rxb6 {[%emt 0:00:00] Endgame KRR-KRR
} 37. Ke2 {[%emt 0:00:06]} Ke6 {[%emt 0:00:49]} 38. Rd1 {[%emt 0:02:30]} Rb8 {
[%emt 0:02:39]} 39. Rc5 {[%emt 0:01:32]} Rxd1 {[%emt 0:00:45]} 40. Kxd1 $11 {
[%emt 0:00:04] KR-KR} Kd6 {[%emt 0:00:59]} 41. Ra5 {[%emt 0:33:40]} Ra8 {
[%emt 0:13:54]} 42. g4 {[%emt 0:00:00]} Kc7 {[%emt 0:00:00]} 43. g5 {[%emt 0:
00:00]} Kb6 {[%emt 0:00:50]} 44. Ke2 {[%emt 0:00:00]} Rd8 {[%emt 0:09:04]} 45.
gxf6 {[%emt 0:00:00]} gxf6 {[%emt 0:00:02]} 46. Rc5 {[%emt 0:00:00] Weighted
Error Value: White=0.06 (flawless) /Black=0.08 (flawless)} 1/2-1/2

[Event "44th Chess Olympiad Women 2022"]
[Site "Chennai"]
[Date "2022.08.03"]
[Round "6.30"]
[White "Tuominen, Tanja"]
[Black "Eftovska, Lea"]
[Result "0-1"]
[WhiteElo "2080"]
[BlackElo "1634"]
[Annotator "NA RC"]
[PlyCount "92"]
[EventDate "2022.??.??"]
[TimeControl "60"]

1. e4 {[%emt 0:00:02]} e5 {[%emt 0:00:11]} 2. Nf3 {[%emt 0:00:06]} Nc6 {
[%emt 0:00:04]} 3. Nc3 {[%emt 0:00:04]} Nf6 {[%emt 0:00:10]} 4. g3 {[%emt 0:00:
00]} d5 {[%emt 0:00:27]} 5. exd5 {[%emt 0:00:06]} Nxd5 {[%emt 0:00:06]} 6. Bg2
{[%emt 0:00:40]} Nxc3 {[%emt 0:00:37]} 7. bxc3 {[%emt 0:00:07]} Bc5 {[%emt 0:
00:00]} 8. O-O {[%emt 0:01:28]} O-O {[%emt 0:00:17]} 9. d3 {[%emt 0:01:24]} Bb6
{[%emt 0:04:23]} 10. h3 {[%emt 0:07:05]} Be6 {[%emt 0:09:30]} 11. Qe2 {[%emt 0:
00:00]} f6 {[%emt 0:06:24]} 12. a4 {[%emt 0:03:38]} Qd7 {[%emt 0:01:13]} 13.
Ba3 {[%emt 0:02:46]} Rfe8 {[%emt 0:01:12]} 14. Kh2 {[%emt 0:00:36]} Rab8 {
[%emt 0:15:06]} 15. Nd2 {[%emt 0:09:54]} Bd5 {[%emt 0:10:01]} 16. f3 {[%emt 0:
00:00]} a6 {[%emt 0:04:36]} 17. Nb3 {[%emt 0:05:55]} Qf7 {[%emt 0:09:11]} 18.
c4 {[%emt 0:20:44]} Be6 {[%emt 0:00:20]} 19. Nc5 {[%emt 0:01:45]} Bxc5 {
[%emt 0:00:51]} 20. Bxc5 {[%emt 0:00:06]} b6 {[%emt 0:03:43]} 21. Be3 {[%emt 0:
00:00]} Nd4 {[%emt 0:05:52]} 22. Qf2 {[%emt 0:01:44]} Nf5 {[%emt 0:03:40]} 23.
Bd2 {[%emt 0:00:53]} Nd4 {[%emt 0:04:22]} 24. Bc3 {[%emt 0:00:51]} c5 {[%emt 0:
00:00]} 25. Rfb1 {[%emt 0:06:04]} Qc7 {[%emt 0:04:15]} 26. Rb2 {[%emt 0:01:49]}
Bd7 {[%emt 0:01:02]} 27. Bd2 {[%emt 0:04:19]} Bc6 {[%emt 0:01:35]} 28. c3 {
[%emt 0:01:34]} Ne6 {[%emt 0:00:10]} 29. Be3 {[%emt 0:00:15]} Red8 {[%emt 0:00:
00]} 30. Bf1 {[%emt 0:00:56]} f5 {[%emt 0:02:25]} 31. f4 {[%emt 0:02:26]} exf4
{[%emt 0:00:47]} 32. gxf4 {[%emt 0:00:45]} a5 {[%emt 0:06:50]} 33. d4 {[%emt 0:
00:00]} cxd4 {[%emt 0:00:14]} 34. cxd4 {[%emt 0:00:10]} Ng5 {[%emt 0:00:26]}
35. d5 {[%emt 0:01:23]} Ne4 {[%emt 0:00:12]} 36. Qg1 {[%emt 0:00:47]} Be8 {
[%emt 0:00:16]} 37. Bd3 {[%emt 0:02:27]} Qe7 {[%emt 0:01:13]} 38. Rxb6 {
[%emt 0:00:42]} Rxb6 {[%emt 0:01:17]} 39. Bxb6 {[%emt 0:00:04]} Rd6 {[%emt 0:
00:00]} 40. Bxe4 {[%emt 0:04:06]} Qxe4 {[%emt 0:00:17]} 41. Qe3 {[%emt 0:02:44]
} Qc2+ {[%emt 0:09:35]} 42. Kh1 {[%emt 0:02:53]} Bh5 {[%emt 0:01:31]} 43. c5 {
[%emt 0:07:17]} Bf7 {[%emt 0:06:37]} 44. Rf1 {[%emt 0:16:48]} Bxd5+ {[%emt 0:
00:00]} 45. Rf3 {[%emt 0:00:02]} Bxf3+ {[%emt 0:00:16]} 46. Qxf3 {[%emt 0:00:
00]} Rd1+ {[%emt 0:00:10]} 0-1

[Event "44th Chess Olympiad Women 2022"]
[Site "Chennai"]
[Date "2022.08.03"]
[Round "6.30"]
[White "Zhezhovska, Monika"]
[Black "Puuska, Heini"]
[Result "1-0"]
[WhiteElo "1588"]
[BlackElo "2010"]
[Annotator "NA RC"]
[PlyCount "101"]
[EventDate "2022.??.??"]
[TimeControl "60"]

1. d4 {[%emt 0:00:04]} d5 {[%emt 0:00:08]} 2. c4 {[%emt 0:00:08]} e6 {[%emt 0:
00:00]} 3. Nc3 {[%emt 0:00:07]} a6 {[%emt 0:00:14]} 4. cxd5 {[%emt 0:00:26]}
exd5 {[%emt 0:00:12]} 5. Nf3 {[%emt 0:00:11]} c6 {[%emt 0:00:50]} 6. Qc2 {
[%emt 0:01:15]} Bd6 {[%emt 0:03:07]} 7. Bg5 {[%emt 0:03:24]} Ne7 {[%emt 0:00:
00]} 8. e3 {[%emt 0:02:21]} f6 {[%emt 0:01:41]} 9. Bh4 {[%emt 0:00:34]} Bf5 {
[%emt 0:00:26]} 10. Bd3 {[%emt 0:01:55]} Bxd3 {[%emt 0:00:38]} 11. Qxd3 {
[%emt 0:00:08]} Nd7 {[%emt 0:02:05]} 12. O-O {[%emt 0:01:57]} O-O {[%emt 0:00:
00]} 13. Rfc1 {[%emt 0:03:06]} Nb6 {[%emt 0:04:15]} 14. Bg3 {[%emt 0:04:49]}
Ng6 {[%emt 0:08:48]} 15. Rab1 {[%emt 0:04:54]} Qe7 {[%emt 0:06:57]} 16. Nd2 {
[%emt 0:07:47]} f5 {[%emt 0:03:29]} 17. Re1 {[%emt 0:09:03]} Rf6 {[%emt 0:00:
00]} 18. Bxd6 {[%emt 0:05:28]} Qxd6 {[%emt 0:00:32]} 19. b4 {[%emt 0:00:23]}
Qe6 {[%emt 0:10:30]} 20. a4 {[%emt 0:03:34]} Nc4 {[%emt 0:02:33]} 21. b5 {
[%emt 0:02:27]} Nxd2 {[%emt 0:01:07]} 22. Qxd2 {[%emt 0:00:09]} axb5 {[%emt 0:
00:00]} 23. axb5 {[%emt 0:00:26]} Nh4 {[%emt 0:00:58]} 24. Kh1 {[%emt 0:10:51]}
Rg6 {[%emt 0:06:13]} 25. Rg1 {[%emt 0:00:57]} h6 {[%emt 0:13:03]} 26. Ne2 {
[%emt 0:04:00]} Rxg2 {[%emt 0:02:58]} 27. Rxg2 {[%emt 0:05:25]} Nxg2 {[%emt 0:
00:00]} 28. Ng3 {[%emt 0:02:44]} Nh4 {[%emt 0:00:52]} 29. bxc6 {[%emt 0:04:52]}
Qxc6 {[%emt 0:05:50]} 30. Rc1 {[%emt 0:04:35]} Qg6 {[%emt 0:01:18]} 31. Qe2 {
[%emt 0:02:12]} f4 {[%emt 0:02:56]} 32. exf4 {[%emt 0:02:43]} Ra3 {[%emt 0:00:
00]} 33. Qh5 {[%emt 0:03:12]} Rxg3 {[%emt 0:01:24]} 34. Qxd5+ {[%emt 0:00:12]}
Kh7 {[%emt 0:00:37]} 35. fxg3 {[%emt 0:00:44]} Nf5 {[%emt 0:00:19]} 36. Re1 {
[%emt 0:01:20]} Qg4 {[%emt 0:01:31]} 37. Qe4 {[%emt 0:01:21]} h5 {[%emt 0:00:
00]} 38. Rg1 {[%emt 0:01:13]} b5 {[%emt 0:00:33]} 39. d5 {[%emt 0:01:00]} Kh6 {
[%emt 0:01:01]} 40. Qe6+ {[%emt 0:02:09]} Kh7 {[%emt 0:00:14]} 41. Qe4 {
[%emt 0:30:54]} Kh6 {[%emt 0:30:14]} 42. Ra1 {[%emt 0:01:32]} h4 {[%emt 0:00:
00]} 43. gxh4 {[%emt 0:02:03]} Qh3 {[%emt 0:00:49]} 44. Rg1 {[%emt 0:00:57]} b4
{[%emt 0:00:32]} 45. Qg2 {[%emt 0:01:59]} Qxg2+ {[%emt 0:01:18]} 46. Rxg2 {
[%emt 0:00:04]} Ne3 {[%emt 0:00:28]} 47. Rd2 {[%emt 0:00:43]} b3 {[%emt 0:00:
00]} 48. d6 {[%emt 0:01:40]} Nc4 {[%emt 0:00:38]} 49. d7 {[%emt 0:00:09]} Nxd2
{[%emt 0:00:21]} 50. d8=Q {[%emt 0:00:06]} b2 {[%emt 0:00:49]} 51. Qb6+ {
[%emt 0:00:03]} 1-0

[Event "44th Chess Olympiad Women 2022"]
[Site "Chennai"]
[Date "2022.08.03"]
[Round "6.31"]
[White "Cooke, Suzie G."]
[Black "Omonova, Umida"]
[Result "0-1"]
[WhiteElo "1936"]
[BlackElo "2195"]
[Annotator "TA"]
[PlyCount "118"]
[EventDate "2022.??.??"]
[TimeControl "60"]

{[%evp 11,117,0,11,0,-9,-8,5,-10,16,-8,3,0,15,-17,-15,-23,-27,-24,-17,-22,-25,
-17,0,0,7,3,0,0,4,0,0,-3,0,0,0,0,0,0,-37,-62,-64,-149,-129,-141,-132,-145,-143,
-125,-129,-143,-153,-317,0,0,0,0,0,0,67,91,63,60,322,254,283,283,283,283,429,
268,504,414,389,0,0,0,0,0,0,0,0,0,0,0,0,0,0,0,0,0,0,0,0,0,0,-9,-15,-193,-14,
-263,-180,-263,-263,-29996,-29997,-29997,-29998,-29999]} 1. d4 {[%emt 0:00:03]}
d5 {[%emt 0:00:09]} 2. Bf4 {[%emt 0:00:06]} Nf6 {[%emt 0:00:07]} 3. e3 {
[%emt 0:00:14]} c5 {[%emt 0:00:05]} 4. Nf3 {[%emt 0:00:35]} Nc6 {[%emt 0:00:06]
} 5. Nbd2 {[%emt 0:00:10]} Bf5 {[%emt 0:05:01]} 6. c3 {[%emt 0:03:53]} e6 $1 {
[%emt 0:04:32] The main line 6...e6 scores better than 6...Qb6.} 7. Qb3 {
[%emt 0:02:02] D00:1 d4 d5: Unusual lines.} Qc8 {[%emt 0:00:30]} 8. Ne5 {
[%emt 0:07:29]} Nxe5 {[%emt 0:08:53]} 9. Bxe5 {[%emt 0:01:53] The position is
equal.} c4 {[%emt 0:01:13]} 10. Qd1 {[%emt 0:06:08]} Be7 {[%emt 0:03:05]} 11.
Be2 {[%emt 0:01:34]} Nd7 {[%emt 0:02:57]} 12. Bg3 {[%emt 0:10:11] [#]} (12. g4
$5 {[%cal Rg4f5]} Nxe5 13. gxf5 $11) 12... b5 $146 {[%emt 0:04:19]} ({
Predecessor:} 12... O-O 13. O-O b5 14. Bf3 Nf6 15. Re1 Qc6 16. Bh4 Bg6 17. e4
Rfe8 18. exd5 Nxd5 19. Bxe7 Rxe7 {½-½ (105) Ivanov,O (2458)-Labussiere,V 
(2332) Chess.com INT 2021}) 13. a3 {[%emt 0:01:07]} O-O {[%emt 0:02:27]} 14.
O-O {[%emt 0:03:42]} a5 {[%emt 0:03:19]} 15. Re1 {[%emt 0:13:59]} Qc6 {[%emt 0:
00:00]} 16. Bf3 {[%emt 0:04:11]} Nf6 {[%emt 0:04:01]} 17. Bh4 {[%emt 0:03:22]}
Rfe8 {[%emt 0:02:20]} 18. Bxf6 {[%emt 0:06:26]} Bxf6 {[%emt 0:00:35]} 19. e4 {
[%emt 0:00:04]} Bg6 {[%emt 0:00:07]} 20. exd5 {[%emt 0:02:50]} exd5 {[%emt 0:
00:00]} 21. Nf1 {[%emt 0:03:03]} Bg5 {[%emt 0:00:23]} 22. g3 {[%emt 0:00:58]}
Rxe1 {[%emt 0:05:14]} 23. Qxe1 {[%emt 0:00:05]} Re8 {[%emt 0:00:10] Against Qe5
} 24. Qd1 {[%emt 0:00:25]} (24. Ne3 Bxe3 25. fxe3 Be4 $15) 24... Bd3 {[%emt 0:
00:00]} 25. b4 {[%emt 0:01:50]} a4 {[%emt 0:02:50]} 26. h4 {[%emt 0:05:53]} (
26. Bg2 $15) 26... Bh6 $17 {[%emt 0:00:41]} 27. Nh2 {[%emt 0:00:27][%cal Yf1h2,
Yh2f3,Yf3e5]} f5 {[%emt 0:01:16] Inhibits Ng4.} 28. Bg2 {[%emt 0:00:00]} Re2 $1
{[%emt 0:18:15]} 29. Nf3 {[%emt 0:04:04] Hoping for Ne5.} Qe6 {[%emt 0:01:12]
[%cal Ye2f2] Threatens to win with ...Rxf2! Black is much more active.} 30. Ne5
{[%emt 0:02:23]} Bd2 {[%emt 0:00:42]} 31. Bf1 $2 {[%emt 0:00:00] [#]} (31. Bf3
$17 Bxc3 32. Bxe2 Bxe2 33. Qxe2 Bxa1 34. Qe3) 31... Bxc3 $1 {[%emt 0:03:30]}
32. Nxd3 $11 {[%emt 0:03:18]} Rd2 {[%emt 0:07:25]} (32... cxd3 33. Qxd3 Bxa1
34. Bxe2 $14 (34. Qxe2 Qxe2 35. Bxe2 Bb2 $11)) 33. Qc1 {[%emt 0:00:00]} Rxd3 {
[%emt 0:01:31]} 34. Ra2 $36 {[%emt 0:00:02] White fights for an advantage.}
Bxd4 {[%emt 0:03:33]} 35. Bxd3 $14 {[%emt 0:00:22]} cxd3 $11 {[%emt 0:00:01]
Endgame KQR-KQB} 36. Rd2 {[%emt 0:01:26]} Bb6 $2 {[%emt 0:02:44]} (36... Qe4 $1
$14) 37. Qd1 {[%emt 0:01:41]} ({Less strong is} 37. Rxd3 d4 38. Rd1 g6 $18)
37... f4 {[%emt 0:01:04]} 38. Rxd3 {[%emt 0:00:21]} fxg3 {[%emt 0:00:54]} 39.
Rxg3 {[%emt 0:00:33]} g6 {[%emt 0:01:51]} (39... Qf7 {might work better.} 40.
Qe2 h6) 40. Qf3 {[%emt 0:00:00]} d4 $2 {[%emt 0:00:51]} (40... Qf7 41. h5 Qxf3
42. Rxf3 Kg7) 41. Rg4 {[%emt 0:32:28]} d3 {[%emt 0:33:35] ...d2 is the strong
threat.} 42. Rf4 $2 {[%emt 0:00:00]} ({White should try} 42. Rg5 $18) 42... Qd6
{[%emt 0:00:00]} 43. Rf6 {[%emt 0:00:00]} Qd8 {[%emt 0:00:00] White must now
prevent ...d2.} 44. Rxb6 $1 {[%emt 0:00:00]} Qxb6 {[%emt 0:00:00]} 45. Qxd3 {
[%emt 0:00:00] KQ-KQ} Qc6 {[%emt 0:00:00]} 46. Qd8+ {[%emt 0:00:00]} Kf7 {
[%emt 0:00:00]} 47. Qg5 {[%emt 0:00:00]} Qc4 {[%emt 0:00:00]} 48. h5 {[%emt 0:
00:00]} Qd3 {[%emt 0:00:00]} 49. Qf4+ {[%emt 0:00:00]} Ke6 {[%emt 0:00:00]} 50.
h6 {[%emt 0:00:23]} Qf5 {[%emt 0:00:00]} 51. Qe3+ {[%emt 0:00:08]} Kf6 {
[%emt 0:00:00] Strongly threatening ...Qg5+.} 52. f4 {[%emt 0:00:54] Prevents
Qg5+.} Qd5 {[%emt 0:00:00]} 53. Qc3+ {[%emt 0:01:29]} Kf5 {[%emt 0:00:00]} 54.
Qg7 $2 {[%emt 0:01:26]} (54. Kf2 $11) 54... Qd1+ $2 {[%emt 0:11:32]} ({Worse is
} 54... Kxf4 55. Qxh7 Qd4+ 56. Kg2 $11) (54... Kg4 $1 $19 {( -> ...Qd1+)} 55.
f5 (55. Qxh7 {is a self mate.} Qd1+ 56. Kf2 Qd2+ 57. Kg1 Qe1+ 58. Kg2 Qe2+ 59.
Kg1 Kh3 60. Qd7+ Kg3) 55... g5) 55. Kg2 $2 {[%emt 0:01:07]} (55. Kf2 $1 $11 {
and White is okay.} Qd2+ 56. Kg1) 55... Qe2+ {[%emt 0:00:00]} 56. Kg1 {[%emt 0:
00:11] [#]} (56. Kh3 $142) 56... Kg4 $1 $19 {[%emt 0:00:00]} 57. Qxh7 $2 {
[%emt 0:00:48] [#]} (57. Qc3 $19) 57... Kh3 $1 {[%emt 0:00:00][%cal Re2e1]
Black mates.} 58. Qd7+ {[%emt 0:02:14]} Kg3 {[%emt 0:00:00][%cal Re2e1]} 59.
Qd4 {[%emt 0:00:38]} Qg2# {[%emt 0:00:00] A wild game. Weighted Error Value:
White=0.46/Black=0.34} 0-1

[Event "44th Chess Olympiad Women 2022"]
[Site "Chennai"]
[Date "2022.08.03"]
[Round "6.31"]
[White "Hughes, Rhian"]
[Black "Khamdamova, Afruza"]
[Result "0-1"]
[WhiteElo "1843"]
[BlackElo "1969"]
[Annotator "NA RC"]
[PlyCount "104"]
[EventDate "2022.??.??"]
[TimeControl "60"]

1. c4 {[%emt 0:00:02]} Nf6 {[%emt 0:00:10]} 2. Nc3 {[%emt 0:00:08]} e5 {
[%emt 0:00:06]} 3. g3 {[%emt 0:00:14]} Bb4 {[%emt 0:00:08]} 4. Bg2 {[%emt 0:00:
00]} O-O {[%emt 0:00:31]} 5. e4 {[%emt 0:05:59]} Nc6 {[%emt 0:04:56]} 6. Nge2 {
[%emt 0:00:37]} Bc5 {[%emt 0:02:29]} 7. h3 {[%emt 0:02:36]} d6 {[%emt 0:01:36]}
8. O-O {[%emt 0:01:24]} Be6 {[%emt 0:01:04]} 9. d3 {[%emt 0:00:17]} Nd4 {
[%emt 0:06:34]} 10. Be3 {[%emt 0:02:46]} c6 {[%emt 0:13:09]} 11. Rb1 {[%emt 0:
00:00]} d5 {[%emt 0:03:48]} 12. cxd5 {[%emt 0:14:26]} cxd5 {[%emt 0:00:06]} 13.
Na4 {[%emt 0:21:07]} Nxe2+ {[%emt 0:00:48]} 14. Qxe2 {[%emt 0:00:07]} Bxe3 {
[%emt 0:00:04]} 15. Qxe3 {[%emt 0:10:59]} d4 {[%emt 0:04:46]} 16. Qg5 {[%emt 0:
00:00]} Qa5 {[%emt 0:00:43]} 17. b3 {[%emt 0:00:26]} h6 {[%emt 0:00:09]} 18.
Qc1 {[%emt 0:00:18]} Rfc8 {[%emt 0:02:20]} 19. Qd1 {[%emt 0:00:53]} b5 {
[%emt 0:00:50]} 20. Nc5 {[%emt 0:01:37]} Qxa2 {[%emt 0:04:25]} 21. Nxe6 {
[%emt 0:03:23]} fxe6 {[%emt 0:00:06]} 22. h4 {[%emt 0:03:39]} Qc2 {[%emt 0:00:
00]} 23. Bh3 {[%emt 0:01:39]} Kf7 {[%emt 0:01:21]} 24. Qf3 {[%emt 0:03:25]} Rc3
{[%emt 0:02:03]} 25. Rfd1 {[%emt 0:00:28]} Rac8 {[%emt 0:06:16]} 26. Ra1 {
[%emt 0:01:13]} R8c7 {[%emt 0:00:16]} 27. b4 {[%emt 0:02:00]} Qb2 {[%emt 0:00:
00]} 28. Ra6 {[%emt 0:04:15]} Re7 {[%emt 0:02:07]} 29. g4 {[%emt 0:04:15]} g5 {
[%emt 0:00:54]} 30. hxg5 {[%emt 0:00:19]} hxg5 {[%emt 0:00:03]} 31. Bf1 {
[%emt 0:01:12]} Rc1 {[%emt 0:03:16]} 32. Rxc1 {[%emt 0:01:24]} Qxc1 {[%emt 0:
00:00]} 33. Ra5 {[%emt 0:01:59]} Rb7 {[%emt 0:01:37]} 34. Qg3 {[%emt 0:01:18]}
Qf4 {[%emt 0:01:28]} 35. Qxf4 {[%emt 0:00:30]} exf4 {[%emt 0:00:13]} 36. f3 {
[%emt 0:00:08]} Nd7 {[%emt 0:00:08]} 37. Be2 {[%emt 0:00:51]} Ne5 {[%emt 0:00:
00]} 38. Ra2 {[%emt 0:01:07]} Nc6 {[%emt 0:00:17]} 39. Rb2 {[%emt 0:00:11]} Rb6
{[%emt 0:00:17]} 40. Kf2 {[%emt 0:01:25]} Ra6 {[%emt 0:00:49]} 41. Bd1 {
[%emt 0:32:09]} Ra3 {[%emt 0:32:15]} 42. Ke2 {[%emt 0:00:00]} Ke7 {[%emt 0:00:
00]} 43. Bc2 {[%emt 0:00:00]} Kd6 {[%emt 0:00:00]} 44. Bd1 {[%emt 0:00:00]} Ne5
{[%emt 0:00:00]} 45. Bc2 {[%emt 0:00:00]} Rc3 {[%emt 0:00:00]} 46. Bb1 {
[%emt 0:00:00]} Rc1 {[%emt 0:00:00]} 47. Kf2 {[%emt 0:00:00]} Rh1 {[%emt 0:00:
00]} 48. Kg2 {[%emt 0:00:00]} Rd1 {[%emt 0:00:00]} 49. Kf2 {[%emt 0:00:00]}
Rxd3 {[%emt 0:00:00]} 50. Ke2 {[%emt 0:00:00]} Re3+ {[%emt 0:00:00]} 51. Kf2 {
[%emt 0:00:00]} Rxf3+ {[%emt 0:00:00]} 52. Kg2 {[%emt 0:00:00]} Rg3+ {[%emt 0:
00:00]} 0-1